fUSD/lending_fUSD_20250617
["ID","MTS","AMOUNT","RATE_DAILY","PERIOD"]
[366237484,1750148421915,-150.0,0.00016561,2]
[366237485,1750148421938,-353.01221724,0.00016565,2]
[366237486,1750148421961,-150.0,0.00016572,2]
[366237487,1750148421986,-150.0,0.00016576,2]
[366237488,1750148422010,-353.01221724,0.00016586,2]
[366237489,1750148422034,-3412.81758535,0.0001659,2]
[366237490,1750148422056,-491.07800072,0.00016601,2]
[366237491,1750148422079,-491.16205614,0.00016601,2]
[366237492,1750148422101,-556.58099718,0.00016601,2]
[366237500,1750148611868,150.0,0.00019024,120]
[366237512,1750148790739,150.0,0.00019991,120]
[366237514,1750148850791,150.0,0.00020913,120]
[366237533,1750148963141,-347.9,0.00013699,2]
[366237544,1750149032313,-27.08,0.00013699,2]
[366237545,1750149032323,-202.0,0.00014876,2]
[366237546,1750149032333,-201.0,0.00014876,2]
[366237547,1750149032344,-113.94,0.00015,2]
[366237631,1750149036566,-136.06,0.00015,2]
[366237632,1750149036577,-1359.2,0.00015176,2]
[366237633,1750149036587,-300.0,0.00015287,2]
[366237634,1750149036596,-1200.0,0.00015287,2]
[366237635,1750149036607,-262.0,0.00015287,2]
[366237636,1750149036618,-152.35,0.00015288,2]
[366237637,1750149036628,-150.0,0.00015288,2]
[366237638,1750149036638,-150.0,0.00015288,2]
[366237639,1750149036648,-150.00000001,0.00015288,2]
[366237640,1750149036659,-150.0,0.00015288,2]
[366237641,1750149036669,-150.0,0.00015288,2]
[366237642,1750149036680,-150.0,0.00015288,2]
[366237643,1750149036690,-150.0,0.00015288,2]
[366237644,1750149036701,-150.0,0.00015288,2]
[366237645,1750149036711,-150.0,0.00015288,2]
[366237646,1750149036722,-729.1,0.00015351,2]
[366237647,1750149036733,-150.0,0.00015441,2]
[366237648,1750149036743,-250.0,0.00015441,2]
[366237649,1750149036754,-157.88,0.00015549,2]
[366237650,1750149036766,-1237.38,0.00015603,2]
[366237651,1750149036777,-150.0,0.00015627,2]
[366237652,1750149036788,-202.0,0.00015668,3]
[366237653,1750149036798,-501.69,0.00015699,2]
[366237654,1750149036808,-1000.0,0.00015699,2]
[366237655,1750149036818,-1079.0,0.00015789,2]
[366237656,1750149036828,-604.78455823,0.00015836,2]
[366237657,1750149036839,-1290.91816012,0.000159,2]
[366237658,1750149036850,-168.0,0.00015924,2]
[366237659,1750149036860,-1290.91816006,0.00015934,2]
[366237660,1750149036871,-150.0,0.00015967,2]
[366237661,1750149036885,-1290.91816006,0.00015969,2]
[366237662,1750149036896,-400.0,0.00016,5]
[366237663,1750149036906,-1290.91816006,0.00016003,2]
[366237664,1750149036916,-1290.91816006,0.00016038,2]
[366237665,1750149036926,-1290.91816006,0.00016072,2]
[366237666,1750149036936,-800.0,0.000161,5]
[366237667,1750149036946,-1290.91816006,0.00016107,2]
[366237668,1750149036956,-168.0,0.00016138,2]
[366237669,1750149036967,-1290.91816006,0.00016141,2]
[366237670,1750149036976,-1290.91816006,0.00016176,2]
[366237671,1750149036987,-1300.0,0.000162,5]
[366237672,1750149036997,-1290.91816006,0.0001621,2]
[366237673,1750149037018,-1290.91816006,0.00016245,2]
[366237674,1750149037031,-2452.61950225,0.0001625,2]
[366237675,1750149037041,-1290.91816006,0.00016279,2]
[366237676,1750149037052,-1700.0,0.000163,5]
[366237677,1750149037063,-150.0,0.00016307,2]
[366237678,1750149037074,-1290.91816006,0.00016314,2]
[366237679,1750149037085,-637.9595857,0.00016338,2]
[366237680,1750149037095,-156.72149363,0.00016338,2]
[366237681,1750149037106,-264.75916293,0.00016338,2]
[366237682,1750149037117,-500.0,0.00016338,2]
[366237683,1750149037127,-2673.0382,0.00016338,2]
[366237684,1750149037138,-1000.0,0.00016338,2]
[366237685,1750149037149,-1290.91816006,0.00016348,2]
[366237686,1750149037159,-2508.21278537,0.00016363,2]
[366237687,1750149037170,-200.0,0.0001637,2]
[366237688,1750149037181,-210.83634705,0.00016382,2]
[366237689,1750149037191,-1290.91816006,0.00016383,2]
[366237690,1750149037202,-358.9,0.00016384,2]
[366237691,1750149037213,-200.0,0.00016392,2]
[366237692,1750149037223,-200.0,0.00016393,2]
[366237693,1750149037234,-2100.0,0.000164,5]
[366237694,1750149037244,-1039.21458418,0.00016413,2]
[366237695,1750149037257,-1290.91816006,0.00016417,2]
[366237696,1750149037268,-200.0,0.00016422,2]
[366237697,1750149037279,-2508.21278534,0.00016423,2]
[366237698,1750149037290,-200.0,0.00016423,2]
[366237699,1750149037300,-1101.51,0.00016428,2]
[366237700,1750149037311,-1101.51,0.00016428,2]
[366237701,1750149037322,-1101.51,0.00016428,2]
[366237702,1750149037332,-1101.51,0.00016428,2]
[366237703,1750149037342,-402.97,0.00016428,2]
[366237704,1750149037352,-1039.21458418,0.00016431,2]
[366237705,1750149037362,-1039.21458418,0.00016433,2]
[366237706,1750149037373,-200.0,0.00016434,2]
[366237707,1750149037384,-1039.21458418,0.00016434,2]
[366237708,1750149037394,-469.15313843,0.00016437,2]
[366237709,1750149037404,-490.0,0.00016438,2]
[366237710,1750149037414,-490.0,0.00016438,2]
[366237711,1750149037425,-490.0,0.00016438,2]
[366237712,1750149037441,-490.0,0.00016438,2]
[366237713,1750149037452,-523.60401153,0.00016438,2]
[366237714,1750149037463,-408.94,0.00016438,2]
[366237715,1750149037473,-490.0,0.00016438,2]
[366237716,1750149037485,-490.0,0.00016438,2]
[366237717,1750149037495,-490.0,0.00016438,2]
[366237718,1750149037506,-490.0,0.00016438,2]
[366237719,1750149037517,-490.0,0.00016438,2]
[366237720,1750149037529,-490.0,0.00016438,2]
[366237721,1750149037539,-818.04,0.00016438,2]
[366237722,1750149037550,-490.0,0.00016438,2]
[366237723,1750149037560,-490.0,0.00016438,2]
[366237724,1750149037572,-490.0,0.00016438,2]
[366237725,1750149037583,-490.0,0.00016438,2]
[366237726,1750149037594,-490.0,0.00016438,2]
[366237727,1750149037604,-490.0,0.00016438,2]
[366237728,1750149037614,-490.0,0.00016438,2]
[366237729,1750149037625,-490.0,0.00016438,2]
[366237730,1750149037635,-490.0,0.00016438,2]
[366237731,1750149037646,-490.0,0.00016438,2]
[366237732,1750149037656,-490.0,0.00016438,2]
[366237733,1750149037667,-490.0,0.00016438,2]
[366237734,1750149037677,-490.0,0.00016438,2]
[366237735,1750149037688,-490.0,0.00016438,2]
[366237736,1750149037698,-490.0,0.00016438,2]
[366237737,1750149037709,-490.0,0.00016438,2]
[366237738,1750149037719,-490.0,0.00016438,2]
[366237739,1750149037730,-490.0,0.00016438,2]
[366237740,1750149037742,-490.0,0.00016438,2]
[366237741,1750149037753,-627.09,0.00016438,2]
[366237742,1750149037764,-547.0,0.00016438,2]
[366237743,1750149037774,-490.0,0.00016438,2]
[366237744,1750149037785,-490.0,0.00016438,2]
[366237745,1750149037797,-490.0,0.00016438,2]
[366237746,1750149037808,-490.0,0.00016438,2]
[366237747,1750149037819,-490.0,0.00016438,2]
[366237748,1750149037830,-490.0,0.00016438,2]
[366237749,1750149037841,-490.0,0.00016438,2]
[366237750,1750149037852,-490.0,0.00016438,2]
[366237751,1750149037863,-490.0,0.00016438,2]
[366237752,1750149037874,-490.0,0.00016438,2]
[366237753,1750149037891,-490.0,0.00016438,2]
[366237754,1750149037903,-490.0,0.00016438,2]
[366237755,1750149037914,-490.0,0.00016438,2]
[366237756,1750149037927,-490.0,0.00016438,2]
[366237757,1750149037938,-490.0,0.00016438,2]
[366237758,1750149037949,-490.0,0.00016438,2]
[366237759,1750149037961,-490.0,0.00016438,2]
[366237760,1750149037971,-635.2200174,0.00016438,2]
[366237761,1750149037983,-490.0,0.00016438,2]
[366237762,1750149037994,-1115.52,0.00016438,2]
[366237763,1750149038005,-490.0,0.00016438,2]
[366237764,1750149038017,-490.0,0.00016438,2]
[366237765,1750149038029,-490.0,0.00016438,2]
[366237766,1750149038042,-490.0,0.00016438,2]
[366237767,1750149038053,-490.0,0.00016438,2]
[366237768,1750149038064,-749.92,0.00016438,2]
[366237769,1750149038075,-490.0,0.00016438,2]
[366237770,1750149038088,-490.0,0.00016438,2]
[366237771,1750149038100,-490.0,0.00016438,2]
[366237772,1750149038111,-490.0,0.00016438,2]
[366237773,1750149038122,-490.0,0.00016438,2]
[366237774,1750149038133,-490.0,0.00016438,2]
[366237775,1750149038143,-490.0,0.00016438,2]
[366237776,1750149038155,-490.0,0.00016438,2]
[366237777,1750149038166,-490.0,0.00016438,2]
[366237778,1750149038177,-490.0,0.00016438,2]
[366237779,1750149038188,-490.0,0.00016438,2]
[366237780,1750149038198,-490.0,0.00016438,2]
[366237781,1750149038208,-1116.76,0.00016438,2]
[366237782,1750149038219,-581.58523221,0.00016438,2]
[366237783,1750149038230,-490.0,0.00016438,2]
[366237784,1750149038241,-490.0,0.00016438,2]
[366237785,1750149038251,-1159.09,0.00016438,2]
[366237786,1750149038262,-490.0,0.00016438,2]
[366237787,1750149038273,-490.0,0.00016438,2]
[366237788,1750149038283,-490.0,0.00016438,2]
[366237789,1750149038294,-490.0,0.00016438,2]
[366237790,1750149038304,-1729.92,0.00016438,2]
[366237791,1750149038319,-938.39,0.00016438,2]
[366237792,1750149038330,-603.32,0.00016438,2]
[366237793,1750149038343,-2477.6,0.00016438,2]
[366237794,1750149038354,-490.0,0.00016438,2]
[366237795,1750149038365,-490.0,0.00016438,2]
[366237796,1750149038375,-490.0,0.00016438,2]
[366237797,1750149038386,-490.0,0.00016438,2]
[366237798,1750149038396,-490.0,0.00016438,2]
[366237799,1750149038407,-490.0,0.00016438,2]
[366237800,1750149038418,-490.0,0.00016438,2]
[366237801,1750149038428,-490.0,0.00016438,2]
[366237802,1750149038439,-490.0,0.00016438,2]
[366237803,1750149038449,-490.0,0.00016438,2]
[366237804,1750149038459,-490.0,0.00016438,2]
[366237805,1750149038470,-490.0,0.00016438,2]
[366237806,1750149038481,-490.0,0.00016438,2]
[366237807,1750149038491,-490.0,0.00016438,2]
[366237808,1750149038502,-1344.5,0.00016438,2]
[366237809,1750149038513,-677.33,0.00016438,2]
[366237810,1750149038524,-490.0,0.00016438,2]
[366237811,1750149038535,-490.0,0.00016438,2]
[366237812,1750149038546,-490.0,0.00016438,2]
[366237813,1750149038557,-490.0,0.00016438,2]
[366237815,1750149038568,-500.0,0.00016438,2]
[366237817,1750149038578,-615.87,0.00016438,2]
[366237819,1750149038588,-490.0,0.00016438,2]
[366237820,1750149038599,-490.0,0.00016438,2]
[366237821,1750149038610,-490.0,0.00016438,2]
[366237822,1750149038620,-490.0,0.00016438,2]
[366237825,1750149038631,-2250.36,0.00016438,2]
[366237827,1750149038641,-490.0,0.00016438,2]
[366237829,1750149038651,-490.0,0.00016438,2]
[366237831,1750149038662,-490.0,0.00016438,2]
[366237833,1750149038672,-490.0,0.00016438,2]
[366237835,1750149038683,-617.72,0.00016438,2]
[366237837,1750149038695,-490.0,0.00016438,2]
[366237839,1750149038705,-762.34,0.00016438,2]
[366237841,1750149038715,-494.61,0.00016438,2]
[366237844,1750149038726,-1243.59,0.00016438,2]
[366237846,1750149038736,-500.0,0.00016438,2]
[366237849,1750149038754,-490.0,0.00016438,2]
[366237851,1750149038770,-490.0,0.00016438,2]
[366237853,1750149038781,-490.0,0.00016438,2]
[366237855,1750149038792,-490.0,0.00016438,2]
[366237858,1750149038804,-612.65315198,0.00016438,2]
[366237860,1750149038815,-490.0,0.00016438,2]
[366237862,1750149038826,-490.0,0.00016438,2]
[366237864,1750149038837,-2060.1,0.00016438,2]
[366237866,1750149038847,-490.0,0.00016438,2]
[366237868,1750149038858,-490.0,0.00016438,2]
[366237871,1750149038869,-490.0,0.00016438,2]
[366237873,1750149038884,-490.0,0.00016438,2]
[366237875,1750149038895,-490.0,0.00016438,2]
[366237877,1750149038905,-490.0,0.00016438,2]
[366237879,1750149038916,-490.0,0.00016438,2]
[366237881,1750149038927,-490.0,0.00016438,2]
[366237883,1750149038937,-612.62893538,0.00016438,2]
[366237885,1750149038948,-490.0,0.00016438,2]
[366237905,1750149039131,-490.0,0.00016438,2]
[366237907,1750149039142,-490.0,0.00016438,2]
[366237910,1750149039151,-490.0,0.00016438,2]
[366237911,1750149039162,-490.0,0.00016438,2]
[366237914,1750149039172,-490.0,0.00016438,2]
[366237916,1750149039182,-490.0,0.00016438,2]
[366237918,1750149039191,-1676.05,0.00016438,2]
[366237919,1750149039204,-490.0,0.00016438,2]
[366237921,1750149039214,-490.0,0.00016438,2]
[366237923,1750149039223,-490.0,0.00016438,2]
[366237925,1750149039233,-490.0,0.00016438,2]
[366237927,1750149039243,-490.0,0.00016438,2]
[366237929,1750149039253,-712.35,0.00016438,2]
[366237931,1750149039263,-939.24,0.00016438,2]
[366237933,1750149039273,-490.0,0.00016438,2]
[366237935,1750149039283,-490.0,0.00016438,2]
[366237937,1750149039292,-490.0,0.00016438,2]
[366237939,1750149039302,-480.00016432,0.00016438,2]
[366237941,1750149039312,-500.0,0.00016438,2]
[366237943,1750149039321,-494.43916089,0.00016438,2]
[366237945,1750149039330,-490.0,0.00016438,2]
[366237947,1750149039340,-490.0,0.00016438,2]
[366237948,1750149039350,-490.0,0.00016438,2]
[366237949,1750149039359,-3308.05,0.00016438,2]
[366237950,1750149039369,-490.0,0.00016438,2]
[366237951,1750149039378,-490.0,0.00016438,2]
[366237952,1750149039388,-490.0,0.00016438,2]
[366237953,1750149039398,-490.0,0.00016438,2]
[366237954,1750149039408,-490.0,0.00016438,2]
[366237955,1750149039418,-490.0,0.00016438,2]
[366237956,1750149039428,-490.0,0.00016438,2]
[366237957,1750149039438,-490.0,0.00016438,2]
[366237958,1750149039448,-490.0,0.00016438,2]
[366237959,1750149039458,-490.0,0.00016438,2]
[366237960,1750149039468,-1031.27,0.00016438,2]
[366237961,1750149039477,-490.0,0.00016438,2]
[366237963,1750149039487,-490.0,0.00016438,2]
[366237965,1750149039497,-1930.36,0.00016438,2]
[366237967,1750149039506,-490.0,0.00016438,2]
[366237969,1750149039518,-1713.26,0.00016438,2]
[366237971,1750149039527,-1153.83,0.00016438,2]
[366237973,1750149039537,-563.82,0.00016438,2]
[366237975,1750149039546,-428.11143796,0.00016438,2]
[366237977,1750149039556,-490.0,0.00016438,2]
[366237979,1750149039566,-597.61,0.00016438,2]
[366237981,1750149039575,-490.0,0.00016438,2]
[366237983,1750149039585,-490.0,0.00016438,2]
[366237985,1750149039595,-490.0,0.00016438,2]
[366237987,1750149039604,-719.85,0.00016438,2]
[366237989,1750149039614,-490.0,0.00016438,2]
[366237991,1750149039624,-490.0,0.00016438,2]
[366237993,1750149039634,-490.0,0.00016438,2]
[366237995,1750149039644,-490.0,0.00016438,2]
[366237997,1750149039654,-490.0,0.00016438,2]
[366237999,1750149039663,-254.03200831,0.00016438,2]
[366238001,1750149039673,-3452.14,0.00016438,2]
[366238003,1750149039683,-490.0,0.00016438,2]
[366238005,1750149039692,-490.0,0.00016438,2]
[366238007,1750149039701,-490.0,0.00016438,2]
[366238009,1750149039711,-490.0,0.00016438,2]
[366238011,1750149039720,-490.0,0.00016438,2]
[366238013,1750149039730,-490.0,0.00016438,2]
[366238015,1750149039739,-1457.15,0.00016438,2]
[366238017,1750149039749,-490.0,0.00016438,2]
[366238019,1750149039759,-490.0,0.00016438,2]
[366238021,1750149039770,-595.19,0.00016438,2]
[366238024,1750149039780,-490.0,0.00016438,2]
[366238026,1750149039789,-490.0,0.00016438,2]
[366238028,1750149039799,-1758.48,0.00016438,2]
[366238030,1750149039808,-955.26,0.00016438,2]
[366238032,1750149039818,-490.0,0.00016438,2]
[366238034,1750149039828,-490.0,0.00016438,2]
[366238036,1750149039838,-504.53,0.00016438,2]
[366238038,1750149039848,-490.0,0.00016438,2]
[366238040,1750149039859,-490.0,0.00016438,2]
[366238042,1750149039869,-950.66,0.00016438,2]
[366238044,1750149039882,-490.0,0.00016438,2]
[366238046,1750149039892,-1093.12,0.00016438,2]
[366238048,1750149039902,-490.0,0.00016438,2]
[366238050,1750149039912,-490.0,0.00016438,2]
[366238052,1750149039923,-586.89,0.00016438,2]
[366238054,1750149039933,-516.91,0.00016438,2]
[366238056,1750149039943,-490.0,0.00016438,2]
[366238058,1750149039952,-490.0,0.00016438,2]
[366238060,1750149039963,-1635.52,0.00016438,2]
[366238062,1750149039972,-322.88096864,0.00016438,2]
[366238064,1750149039982,-3791.59,0.00016438,2]
[366238066,1750149039991,-490.0,0.00016438,2]
[366238068,1750149040000,-490.0,0.00016438,2]
[366238070,1750149040010,-490.0,0.00016438,2]
[366238072,1750149040020,-490.0,0.00016438,2]
[366238074,1750149040029,-13479.64,0.00016438,2]
[366238076,1750149040040,-490.0,0.00016438,2]
[366238078,1750149040049,-490.0,0.00016438,2]
[366238080,1750149040059,-1674.99,0.00016438,2]
[366238082,1750149040069,-490.0,0.00016438,2]
[366238084,1750149040078,-490.0,0.00016438,2]
[366238086,1750149040089,-5264.03,0.00016438,2]
[366238088,1750149040098,-490.0,0.00016438,2]
[366238090,1750149040108,-490.0,0.00016438,2]
[366238092,1750149040118,-490.0,0.00016438,2]
[366238094,1750149040128,-490.0,0.00016438,2]
[366238096,1750149040138,-1795.71,0.00016438,2]
[366238098,1750149040149,-490.0,0.00016438,2]
[366238101,1750149040159,-490.0,0.00016438,2]
[366238104,1750149040169,-490.0,0.00016438,2]
[366238107,1750149040179,-490.0,0.00016438,2]
[366238109,1750149040189,-1314.19,0.00016438,2]
[366238111,1750149040198,-2213.44,0.00016438,2]
[366238113,1750149040208,-490.0,0.00016438,2]
[366238115,1750149040218,-490.0,0.00016438,2]
[366238117,1750149040227,-1335.4,0.00016438,2]
[366238119,1750149040237,-490.0,0.00016438,2]
[366238121,1750149040247,-490.0,0.00016438,2]
[366238123,1750149040257,-490.0,0.00016438,2]
[366238125,1750149040267,-490.0,0.00016438,2]
[366238127,1750149040277,-490.0,0.00016438,2]
[366238129,1750149040287,-490.0,0.00016438,2]
[366238131,1750149040297,-490.0,0.00016438,2]
[366238133,1750149040306,-490.0,0.00016438,2]
[366238135,1750149040316,-490.0,0.00016438,2]
[366238137,1750149040326,-490.0,0.00016438,2]
[366238139,1750149040335,-606.46,0.00016438,2]
[366238141,1750149040346,-490.0,0.00016438,2]
[366238144,1750149040356,-490.0,0.00016438,2]
[366238146,1750149040366,-490.0,0.00016438,2]
[366238148,1750149040376,-5353.21,0.00016438,2]
[366238150,1750149040385,-578.45,0.00016438,2]
[366238152,1750149040395,-490.0,0.00016438,2]
[366238154,1750149040406,-490.0,0.00016438,2]
[366238156,1750149040416,-490.0,0.00016438,2]
[366238158,1750149040426,-490.0,0.00016438,2]
[366238160,1750149040436,-490.0,0.00016438,2]
[366238162,1750149040446,-490.0,0.00016438,2]
[366238164,1750149040455,-527.84,0.00016438,2]
[366238166,1750149040465,-930.31,0.00016438,2]
[366238168,1750149040476,-490.0,0.00016438,2]
[366238170,1750149040487,-490.0,0.00016438,2]
[366238172,1750149040496,-490.0,0.00016438,2]
[366238174,1750149040506,-490.0,0.00016438,2]
[366238177,1750149040518,-490.0,0.00016438,2]
[366238179,1750149040528,-490.0,0.00016438,2]
[366238181,1750149040538,-4996.58,0.00016438,2]
[366238183,1750149040548,-490.0,0.00016438,2]
[366238185,1750149040557,-490.0,0.00016438,2]
[366238187,1750149040567,-490.0,0.00016438,2]
[366238189,1750149040576,-490.0,0.00016438,2]
[366238191,1750149040586,-490.0,0.00016438,2]
[366238193,1750149040596,-490.0,0.00016438,2]
[366238195,1750149040605,-1487.29,0.00016438,2]
[366238197,1750149040615,-490.0,0.00016438,2]
[366238199,1750149040625,-490.0,0.00016438,2]
[366238201,1750149040635,-490.0,0.00016438,2]
[366238203,1750149040644,-2383.6,0.00016438,2]
[366238205,1750149040653,-490.0,0.00016438,2]
[366238207,1750149040663,-490.0,0.00016438,2]
[366238209,1750149040673,-829.42,0.00016438,2]
[366238211,1750149040682,-490.0,0.00016438,2]
[366238213,1750149040692,-490.0,0.00016438,2]
[366238215,1750149040702,-490.0,0.00016438,2]
[366238217,1750149040711,-3943.62,0.00016438,2]
[366238219,1750149040720,-490.0,0.00016438,2]
[366238221,1750149040730,-2662.02,0.00016438,2]
[366238223,1750149040740,-490.0,0.00016438,2]
[366238225,1750149040749,-490.0,0.00016438,2]
[366238227,1750149040759,-490.0,0.00016438,2]
[366238229,1750149040771,-490.0,0.00016438,2]
[366238230,1750149040782,-490.0,0.00016438,2]
[366238231,1750149040792,-490.0,0.00016438,2]
[366238232,1750149040810,-705.79,0.00016438,2]
[366238233,1750149040821,-497.63963719,0.00016438,2]
[366238234,1750149040830,-1750.97,0.00016438,2]
[366238235,1750149040840,-490.0,0.00016438,2]
[366238236,1750149040850,-490.0,0.00016438,2]
[366238238,1750149040860,-576.0,0.00016438,2]
[366238239,1750149040870,-490.0,0.00016438,2]
[366238240,1750149040883,-490.0,0.00016438,2]
[366238241,1750149040892,-490.0,0.00016438,2]
[366238242,1750149040902,-645.8,0.00016438,2]
[366238243,1750149040912,-490.0,0.00016438,2]
[366238244,1750149040922,-574.19017091,0.00016438,2]
[366238245,1750149040932,-490.0,0.00016438,2]
[366238246,1750149040942,-490.0,0.00016438,2]
[366238247,1750149040955,-490.0,0.00016438,2]
[366238248,1750149040964,-490.0,0.00016438,2]
[366238249,1750149040974,-490.0,0.00016438,2]
[366238250,1750149040983,-490.0,0.00016438,2]
[366238251,1750149040993,-490.0,0.00016438,2]
[366238252,1750149041002,-490.0,0.00016438,2]
[366238253,1750149041012,-490.0,0.00016438,2]
[366238254,1750149041022,-773.43,0.00016438,2]
[366238255,1750149041032,-1192.67,0.00016438,2]
[366238256,1750149041041,-490.0,0.00016438,2]
[366238257,1750149041051,-304.96566997,0.00016438,2]
[366238258,1750149041060,-490.0,0.00016438,2]
[366238259,1750149041070,-490.0,0.00016438,2]
[366238260,1750149041080,-490.0,0.00016438,2]
[366238261,1750149041089,-490.0,0.00016438,2]
[366238262,1750149041099,-502.95,0.00016438,2]
[366238263,1750149041108,-490.0,0.00016438,2]
[366238264,1750149041118,-5308.32,0.00016438,2]
[366238265,1750149041128,-490.0,0.00016438,2]
[366238266,1750149041138,-490.0,0.00016438,2]
[366238267,1750149041147,-490.0,0.00016438,2]
[366238268,1750149041158,-490.0,0.00016438,2]
[366238269,1750149041167,-490.0,0.00016438,2]
[366238270,1750149041177,-1994.55,0.00016438,2]
[366238271,1750149041187,-490.0,0.00016438,2]
[366238272,1750149041197,-858.53,0.00016438,2]
[366238273,1750149041206,-3589.21,0.00016438,2]
[366238274,1750149041215,-490.0,0.00016438,2]
[366238275,1750149041225,-386.47647736,0.00016438,2]
[366238276,1750149041234,-269.54710515,0.00016438,2]
[366238277,1750149041244,-496.32165528,0.00016438,2]
[366238278,1750149041254,-1367.11,0.00016438,2]
[366238279,1750149041265,-490.0,0.00016438,2]
[366238280,1750149041274,-490.0,0.00016438,2]
[366238281,1750149041285,-490.0,0.00016438,2]
[366238282,1750149041295,-5693.44,0.00016438,2]
[366238283,1750149041304,-490.0,0.00016438,2]
[366238284,1750149041314,-490.0,0.00016438,2]
[366238285,1750149041324,-490.0,0.00016438,2]
[366238286,1750149041334,-490.0,0.00016438,2]
[366238287,1750149041343,-1000.0,0.00016438,2]
[366238288,1750149041353,-490.0,0.00016438,2]
[366238289,1750149041362,-490.0,0.00016438,2]
[366238290,1750149041371,-490.0,0.00016438,2]
[366238291,1750149041381,-2564.76,0.00016438,2]
[366238292,1750149041391,-490.0,0.00016438,2]
[366238293,1750149041400,-490.0,0.00016438,2]
[366238294,1750149041410,-490.0,0.00016438,2]
[366238295,1750149041419,-524.46,0.00016438,2]
[366238296,1750149041428,-490.0,0.00016438,2]
[366238297,1750149041438,-490.0,0.00016438,2]
[366238298,1750149041447,-490.0,0.00016438,2]
[366238299,1750149041457,-490.0,0.00016438,2]
[366238300,1750149041466,-4050.38,0.00016438,2]
[366238301,1750149041476,-490.0,0.00016438,2]
[366238302,1750149041486,-490.0,0.00016438,2]
[366238303,1750149041495,-2083.02,0.00016438,2]
[366238304,1750149041504,-524.79,0.00016438,2]
[366238305,1750149041514,-2847.06,0.00016438,2]
[366238306,1750149041524,-490.0,0.00016438,2]
[366238307,1750149041533,-490.0,0.00016438,2]
[366238308,1750149041543,-490.0,0.00016438,2]
[366238309,1750149041552,-6297.5,0.00016438,2]
[366238310,1750149041561,-614.07,0.00016438,2]
[366238311,1750149041570,-490.0,0.00016438,2]
[366238312,1750149041580,-490.0,0.00016438,2]
[366238313,1750149041590,-1503.89,0.00016438,2]
[366238314,1750149041599,-490.0,0.00016438,2]
[366238315,1750149041610,-490.0,0.00016438,2]
[366238316,1750149041619,-490.0,0.00016438,2]
[366238317,1750149041629,-3690.75,0.00016438,2]
[366238318,1750149041639,-500.0,0.00016438,2]
[366238319,1750149041649,-490.0,0.00016438,2]
[366238320,1750149041659,-490.0,0.00016438,2]
[366238321,1750149041670,-656.906447,0.00016438,2]
[366238322,1750149041681,-490.0,0.00016438,2]
[366238323,1750149041691,-154.8783,0.00016438,2]
[366238324,1750149041701,-505.73,0.00016438,2]
[366238325,1750149041712,-490.0,0.00016438,2]
[366238326,1750149041723,-158.138073,0.00016438,2]
[366238327,1750149041734,-152.35,0.00016438,2]
[366238328,1750149041744,-210.836347,0.0001644,2]